bitfinex-derivatives/quotes_ETHF0:USTF0_20250212
["timestamp","ask_amount","ask_price","bid_price","bid_amount"]
[1739368088200,3.2078,2605.9,2604.9,3.2078]
[1739368088504,3.2078,2606.2,2605.0,4.92426593]
[1739368088704,5.904,2607.1,2605.0,4.92426593]
[1739368088705,0.00575661,2605.7,2605.1,3.21355661]
[1739368088904,0.76773,2605.2,2605.1,0.00575661]
[1739368089302,0.76773,2605.2,2604.0,5.9945]
[1739368089303,6.0,2605.2,2604.0,5.9945]
[1739368089599,3.2078,2604.5,2603.2,3.2078]
[1739368089807,0.76811,2604.0,2603.2,3.2078]
[1739368090114,3.2078,2604.1,2603.2,3.2078]
[1739368090405,12.33567147,2605.2,2603.2,3.2078]
[1739368090406,3.2078,2604.8,2603.2,3.2078]
[1739368090605,3.21355661,2603.9,2603.4,0.00575661]
[1739368090806,0.00575661,2603.9,2603.4,0.00575661]
[1739368091217,0.00575661,2603.9,2603.8,3.2078]
[1739368091611,0.76788,2604.7,2603.8,14.24775967]
[1739368091803,3.2078,2605.7,2604.3,3.2078]
[1739368092012,3.2078,2605.7,2604.7,3.2078]
[1739368092318,0.76787,2604.8,2604.4,5.03995967]
[1739368092609,13.08837147,2606.2,2604.2,3.2078]
[1739368092610,3.2078,2605.6,2604.2,3.2078]
[1739368092808,3.2078,2605.6,2604.0,4.95391512]
[1739368092809,3.2078,2606.0,2604.9,3.2078]
[1739368093007,3.2078,2606.0,2605.1,3.2078]
[1739368093408,3.2078,2606.0,2604.8,3.2078]
[1739368093608,0.76782,2604.9,2604.4,3.2078]
[1739368093804,3.2078,2605.4,2604.4,3.2078]
[1739368094007,4.4448,2605.9,2604.7,3.2078]
[1739368094210,3.2078,2606.2,2605.0,3.2078]
[1739368094509,0.76755,2605.9,2605.1,4.91702318]
[1739368094713,0.00575661,2605.6,2605.4,3.2078]
[1739368095411,0.00575661,2605.6,2605.5,4.91702318]
[1739368095608,0.00575661,2605.6,2605.4,9.2078]
[1739368095809,0.07674008,2606.2,2605.5,5.04095021]
[1739368096031,0.07674008,2606.2,2605.8,3.2078]
[1739368096412,0.07674008,2606.2,2606.1,3.2078]
[1739368096814,1.91751,2607.7,2606.1,3.2078]
[1739368096815,3.2078,2607.7,2606.1,14.09007651]
[1739368097118,4.017,2608.4,2606.1,14.09007651]
[1739368097119,3.2078,2607.5,2606.8,3.2078]
[1739368097420,0.76722,2607.0,2606.6,3.2078]
[1739368097620,0.77291661,2607.2,2606.6,3.2078]
[1739368097820,0.76719,2607.1,2606.6,3.2078]
[1739368098121,0.00575661,2607.2,2606.9,3.2078]
[1739368099220,0.00575661,2607.2,2607.0,5.0384778]
[1739368099512,0.00575661,2607.2,2606.9,3.2078]
[1739368099718,0.00575661,2607.2,2606.5,0.00575661]
[1739368100118,0.76732,2606.6,2606.5,0.00575661]
[1739368100310,0.00575661,2607.2,2606.5,0.00283676]
[1739368100517,0.76719,2607.1,2606.5,0.00283676]
[1739368100812,0.00575661,2607.2,2606.6,8.14202088]
[1739368101005,0.77291661,2607.2,2606.6,8.14202088]
[1739368101212,0.00575661,2607.2,2606.9,3.2078]
[1739368101615,0.00575661,2607.2,2606.5,0.00283676]
[1739368101909,0.76721,2607.0,2606.5,0.00283676]
[1739368102418,0.00575661,2607.2,2606.5,0.00283676]
[1739368102921,0.7673,2606.7,2606.5,0.00283676]
[1739368103115,0.76732,2606.6,2606.5,0.00283676]
[1739368103827,3.2078,2607.0,2605.5,3.2078]
[1739368104022,0.76757,2605.8,2605.5,3.2078]
[1739368104227,0.00575661,2607.2,2605.3,3.2078]
[1739368104228,3.2078,2606.4,2605.3,3.2078]
[1739368104427,5.12625,2606.4,2605.0,5.6754]
[1739368104728,3.2078,2606.1,2605.0,5.6754]
[1739368104925,3.2078,2606.1,2604.9,3.2078]
[1739368105117,0.76767,2605.4,2605.3,0.00575661]
[1739368105323,0.76794,2604.5,2604.2,3.2078]
[1739368105524,3.2078,2605.4,2604.2,3.2078]
[1739368105724,3.2078,2605.4,2604.3,4.96736249]
[1739368106027,3.2078,2605.4,2604.2,3.2078]
[1739368106222,3.2078,2605.4,2604.3,0.76798]
[1739368106430,0.76776,2605.2,2604.5,3.2078]
[1739368106623,0.00575661,2605.8,2605.1,3.2078]
[1739368106828,0.76763,2605.6,2605.1,3.2078]
[1739368107132,0.00575661,2605.8,2605.4,3.97547]
[1739368107455,0.00575661,2605.8,2605.1,3.2078]
[1739368107936,3.2078,2605.6,2604.7,3.2078]
[1739368108131,0.76784,2604.9,2604.7,3.2078]
[1739368108337,0.76774,2605.2,2604.7,3.2078]
[1739368108636,3.2078,2605.6,2604.7,3.2078]
[1739368108931,1.91901,2605.7,2604.6,0.00575661]
[1739368108932,0.76788,2604.7,2604.6,0.00575661]
[1739368109234,3.2078,2604.7,2603.4,11.82095383]
[1739368109436,3.2078,2604.7,2603.7,3.2078]
[1739368109628,3.2078,2605.1,2603.9,3.2078]
[1739368109829,0.7679,2604.7,2603.9,3.97591]
[1739368110036,3.2078,2605.6,2604.5,3.2078]
[1739368110235,0.76768,2605.4,2605.1,3.2078]
[1739368110431,1.9187,2606.1,2605.1,3.2078]
[1739368110432,0.76749,2606.1,2605.3,0.7677]
[1739368110627,3.2078,2606.4,2605.8,3.2078]
[1739368110828,0.00575661,2605.5,2605.2,4.92593516]
[1739368111025,0.77340661,2605.5,2605.1,3.2078]
[1739368111225,0.00575661,2605.5,2604.8,0.00575661]
[1739368111629,0.76776,2605.2,2604.8,0.00575661]
[1739368111829,0.76782,2604.9,2604.8,0.00575661]
[1739368112332,6.0,2604.9,2603.5,3.2078]
[1739368112529,3.2078,2604.4,2603.5,3.2078]
[1739368112733,0.7682,2603.6,2603.5,3.2078]
[1739368112930,3.2078,2604.1,2603.5,3.2078]
[1739368113533,0.7682,2603.6,2603.5,3.21167959]
[1739368113837,0.7682,2603.7,2603.5,3.21167959]
[1739368114036,3.21355661,2604.1,2603.5,0.00387959]
[1739368114240,0.7682,2603.6,2603.5,0.00387959]
[1739368115032,6.0,2603.6,2602.7,3.2078]
[1739368115233,0.00575661,2604.1,2603.0,3.2078]
[1739368115435,0.76809,2604.0,2603.1,0.76835]
[1739368115631,0.00575661,2604.1,2603.3,3.2078]
[1739368115831,0.76809,2604.0,2603.4,0.40692436]
[1739368116033,0.76809,2604.0,2603.5,0.40692436]
[1739368116232,0.76817,2603.8,2603.3,3.2078]
[1739368116438,0.00575661,2604.1,2603.3,3.2078]
[1739368117037,3.2078,2603.8,2602.8,3.2078]
[1739368117239,1.92046,2603.7,2602.4,3.2078]
[1739368117535,1.92046,2603.7,2602.5,0.40704457]
[1739368117742,0.76844,2602.8,2602.4,3.2078]
[1739368117937,3.2078,2603.5,2602.4,3.2078]
[1739368118133,0.00575661,2604.1,2601.9,3.2078]
[1739368118134,3.2078,2603.0,2601.9,3.2078]
[1739368118338,0.76858,2602.4,2601.9,3.2078]
[1739368118534,5.12881,2603.0,2601.9,3.2078]
[1739368118535,3.2078,2603.0,2601.9,3.2078]
[1739368118736,0.00575661,2602.7,2601.9,3.2078]
[1739368118937,0.76866,2602.1,2601.9,3.2078]
[1739368119642,6.0,2602.1,2601.3,3.2078]
[1739368119860,0.76893,2601.2,2601.0,3.2078]
[1739368120038,3.2078,2601.5,2600.2,3.2078]
[1739368120347,0.76916,2600.4,2599.9,8.24000235]
[1739368120546,3.2078,2600.5,2599.6,8.24000235]
[1739368120842,23.3188,2600.8,2599.1,3.2078]
[1739368121043,23.3188,2600.8,2600.3,3.2078]
[1739368121044,20.111,2600.8,2600.3,3.2078]
[1739368121234,3.2078,2600.9,2600.3,3.2078]
[1739368121438,3.2078,2600.9,2599.9,3.2078]
[1739368121644,0.76917,2600.4,2599.9,3.2078]
[1739368121843,0.76927,2600.0,2599.6,3.2078]
[1739368122145,3.2078,2600.6,2599.7,5.06319969]
[1739368122645,3.3708,2600.6,2599.6,3.2078]
[1739368122840,3.2078,2600.3,2599.0,3.2078]
[1739368123146,3.2078,2599.8,2598.5,3.2078]
[1739368123351,0.76954,2599.1,2598.5,3.2078]
[1739368123534,3.2078,2599.0,2598.1,3.2078]
[1739368123847,0.00576801,2599.1,2598.1,3.2078]
[1739368124043,0.00576801,2599.1,2598.3,4.91546648]
[1739368124346,0.76963,2598.8,2598.2,8.12326648]
[1739368124539,0.00576801,2599.1,2598.2,3.2078]
[1739368124739,0.00576801,2599.1,2598.1,3.2078]
[1739368125142,0.00576801,2599.1,2598.4,3.2078]
[1739368125342,0.76971,2598.5,2597.8,3.2078]
[1739368125543,0.76977,2598.4,2597.8,8.25292532]
[1739368125744,0.7698,2598.3,2597.8,3.2078]
[1739368125935,0.76985,2598.1,2597.8,3.2078]
[1739368126141,0.163,2598.5,2597.8,3.2078]
[1739368126451,3.2078,2598.1,2597.1,3.2078]
[1739368126643,1.92414,2598.8,2597.1,3.2078]
[1739368126644,3.2078,2597.8,2597.1,3.2078]
[1739368127249,0.00576801,2597.7,2597.1,3.2078]
[1739368127848,0.77013,2597.1,2596.8,3.2078]
[1739368128248,0.77004,2597.4,2596.8,3.2078]
[1739368128447,0.00576801,2597.7,2597.2,3.2078]
[1739368128741,0.00576801,2597.7,2597.3,8.28867183]
[1739368128946,0.00576801,2597.7,2597.6,3.2078]
[1739368130143,3.2078,2599.2,2597.6,14.13939941]
[1739368130344,3.2078,2599.9,2598.7,3.2078]
[1739368130743,3.2078,2599.3,2598.2,3.2078]
[1739368130946,3.2078,2599.0,2598.2,3.2078]
[1739368131148,4.3553,2599.0,2598.2,3.2078]
[1739368131449,0.00576801,2598.9,2598.3,3.21356801]
[1739368131652,0.00576801,2598.9,2598.3,4.92825435]
[1739368131949,0.00576801,2598.9,2598.3,0.00576801]
[1739368132150,0.76968,2598.7,2598.3,0.00576801]
[1739368132346,0.7697,2598.6,2598.3,3.21356801]
[1739368132649,0.00576801,2598.9,2598.4,4.92160144]
[1739368132851,0.00576801,2598.9,2598.5,3.2078]
[1739368133250,0.76965,2598.7,2598.5,3.2078]
[1739368133553,0.00576801,2598.9,2598.5,3.2078]
[1739368133858,0.00576801,2598.9,2598.6,5.0082301]
[1739368134040,0.00576801,2598.9,2598.5,3.2078]
[1739368134356,0.00576801,2598.9,2598.3,0.00576801]
[1739368134357,3.2078,2598.7,2598.3,0.00576801]
[1739368134545,0.76974,2598.4,2598.3,0.00576801]
[1739368134855,3.97754,2598.4,2598.3,8.01e-06]
[1739368135045,9.97754,2598.4,2598.3,8.01e-06]
[1739368135442,3.97754,2598.4,2598.3,8.01e-06]
[1739368135750,9.97754,2598.4,2598.3,8.01e-06]
[1739368136345,0.76974,2598.4,2598.3,8.01e-06]
[1739368136747,3.97754,2598.4,2598.3,8.01e-06]
[1739368137154,0.76974,2598.4,2598.3,8.01e-06]
[1739368137846,0.00576801,2598.9,2598.3,8.01e-06]
[1739368138146,3.21356801,2598.9,2598.3,3.20780801]
[1739368138747,0.00576801,2598.9,2598.3,3.20780801]
[1739368138950,0.00576801,2598.9,2598.4,3.2078]
[1739368139352,0.76971,2598.5,2598.4,3.2078]
[1739368139750,0.00576801,2598.9,2598.4,3.2078]
[1739368139951,0.77537801,2598.9,2598.7,3.2078]
[1739368140452,0.00576801,2598.9,2598.7,3.2078]
[1739368140658,1.1475,2599.0,2598.7,3.2078]
[1739368140659,1.14076026,2599.0,2598.8,5.10562761]
[1739368140951,1.14076026,2599.0,2598.7,3.2078]
[1739368141548,0.76962,2598.8,2598.7,3.2078]
[1739368141748,1.14076026,2599.0,2598.4,3.2078]
[1739368141955,0.76971,2598.5,2598.4,3.2078]
[1739368142154,4.34856026,2599.0,2598.3,3.20780801]
[1739368142350,1.14076026,2599.0,2598.7,3.2078]
[1739368142556,3.2078,2600.2,2598.7,3.2078]
[1739368142753,0.76949,2599.3,2599.0,3.2078]
[1739368143058,3.2078,2599.9,2599.0,3.2078]
[1739368143256,0.76936,2599.7,2599.5,3.2078]
[1739368143558,0.76923,2600.2,2599.5,3.2078]
[1739368143854,3.2078,2600.5,2599.9,3.2078]
[1739368144053,0.76944,2599.4,2599.3,0.00576801]
[1739368144668,0.76935,2599.8,2599.3,0.00576801]
[1739368144962,0.76928,2600.0,2599.5,3.2078]
[1739368145255,0.76944,2599.4,2599.3,0.00576801]
[1739368145657,0.00576801,2600.1,2599.3,0.00576801]
[1739368146065,0.00576801,2600.1,2599.3,3.21356801]
[1739368146361,0.00576801,2600.1,2599.9,3.2078]
[1739368146549,0.00576801,2600.1,2599.4,5.02195912]
[1739368146550,0.00576801,2600.1,2599.6,3.2078]
[1739368146858,0.00576801,2600.1,2599.3,3.21356801]
[1739368147155,0.00576801,2600.1,2599.7,3.2078]
[1739368147459,0.00576801,2600.1,2599.4,3.2078]
[1739368147958,0.00576801,2600.1,2599.7,3.97714]
[1739368148161,0.00576801,2600.1,2599.7,3.2078]
[1739368148461,0.76933,2599.8,2599.7,3.2078]
[1739368148662,0.76944,2599.5,2599.3,3.21356801]
[1739368148857,0.76944,2599.4,2599.3,0.00576801]
[1739368150060,3.2078,2599.7,2599.3,0.00576801]
[1739368150262,3.21356801,2600.1,2599.5,3.2078]
[1739368150569,0.76932,2599.9,2599.5,3.2078]
[1739368150759,0.76932,2599.9,2599.6,0.40927402]
[1739368151065,3.21356801,2600.1,2599.5,3.2078]
[1739368151560,0.00576801,2600.1,2599.8,3.2078]
[1739368151762,0.00576801,2600.1,2599.9,0.40940365]
[1739368151954,0.00576801,2600.1,2599.8,3.2078]
[1739368152362,0.76944,2599.4,2599.3,0.00576801]
[1739368153162,0.76943,2599.5,2599.3,0.00576801]
[1739368153366,3.21356801,2600.1,2599.3,0.00576801]
[1739368153562,0.76944,2599.4,2599.3,0.00576801]
[1739368154467,0.76944,2599.4,2599.3,8.01e-06]
[1739368154669,3.97724,2599.4,2599.3,8.01e-06]
[1739368155462,9.97724,2599.4,2599.3,8.01e-06]
[1739368155860,10.91014695,2599.4,2599.3,8.01e-06]
[1739368156168,10.91014695,2599.4,2597.6,6.2002652]
[1739368156169,0.76994,2597.8,2597.6,8.6381052]
[1739368156460,0.76995,2597.7,2597.6,3.2078]
[1739368157061,0.77008,2597.3,2597.1,8.6593669]
[1739368157262,0.77008,2597.3,2597.0,3.2078]
[1739368157662,0.00576801,2597.9,2597.1,4.91191239]
[1739368157868,0.7701,2597.2,2597.1,4.91191239]
[1739368158062,3.2078,2597.7,2597.0,3.2078]
[1739368158464,0.77013,2597.1,2597.0,3.2078]
[1739368158657,3.2078,2597.7,2597.0,3.2078]
[1739368158857,3.21356801,2597.9,2597.0,3.2078]
[1739368159062,0.77013,2597.1,2597.0,3.2078]
[1739368159371,0.77016,2597.0,2596.9,0.00576801]
[1739368159558,3.21356801,2597.9,2596.9,0.00576801]
[1739368159864,0.77016,2597.0,2596.9,0.00576801]
[1739368160366,3.2078,2597.5,2596.9,0.00576801]
[1739368160560,0.77015,2597.1,2596.9,0.00576801]
[1739368160761,0.77005,2597.4,2597.0,8.25950737]
[1739368160964,0.77002,2597.5,2597.0,8.25950737]
[1739368161169,0.00576801,2597.9,2597.4,3.2078]
[1739368161567,0.00576801,2597.9,2597.5,5.05170737]
[1739368161764,0.00576801,2597.9,2597.7,3.2078]
[1739368162267,0.77565801,2597.9,2597.8,4.96309794]
[1739368162477,0.76992,2597.8,2597.7,3.2078]
[1739368162771,0.00576801,2597.9,2596.9,3.21356801]
[1739368163075,0.00576801,2597.9,2596.9,0.00576801]
[1739368163076,0.77016,2597.0,2596.9,0.00576801]
[1739368164371,0.77016,2597.0,2596.9,8.01e-06]
[1739368166078,6.77016,2597.0,2596.9,8.01e-06]
[1739368166271,6.0,2597.0,2595.7,0.30816354]
[1739368166573,7.492,2597.6,2595.0,0.25]
[1739368166574,0.77068,2595.3,2595.0,0.25]
[1739368166773,0.77072,2595.1,2595.0,0.25]
[1739368166973,3.2078,2595.6,2594.4,3.2078]
[1739368167367,3.2078,2595.6,2594.9,3.2078]
[1739368167567,0.00578001,2595.3,2594.9,3.2078]
[1739368167765,0.00578001,2595.3,2595.2,3.2078]
[1739368167971,0.00578001,2595.3,2595.0,4.93359847]
[1739368168170,3.2078,2596.3,2595.2,13.57170367]
[1739368168375,0.77043,2596.1,2595.8,3.2078]
[1739368168576,0.77026,2596.7,2595.8,3.2078]
[1739368168769,0.77018,2597.0,2596.6,3.2078]
[1739368168971,0.77011,2597.2,2596.6,3.2078]
[1739368169175,3.2078,2597.5,2596.7,5.12095173]
[1739368169368,0.77019,2596.9,2596.7,5.12095173]
[1739368169569,0.00578001,2597.2,2596.8,3.2078]
[1739368169772,20.163,2598.1,2596.8,3.2078]
[1739368169773,3.2078,2598.0,2597.1,3.2078]
[1739368169979,3.2078,2598.3,2597.1,3.2078]
[1739368170180,0.76987,2598.0,2597.2,4.99326752]
[1739368170374,3.2078,2598.6,2597.4,3.2078]
[1739368170670,3.2078,2598.7,2597.8,3.2078]
[1739368170876,0.76976,2598.4,2597.8,3.2078]
[1739368171076,0.00578001,2598.3,2597.9,5.05421575]
[1739368171466,0.77555001,2598.3,2597.9,5.05421575]
[1739368171869,0.00578001,2598.3,2597.9,5.05421575]
[1739368172077,0.77556001,2598.3,2597.9,5.05421575]
[1739368172277,0.00578001,2598.3,2598.2,3.2078]
[1739368173173,0.76989,2597.9,2597.8,3.2078]
[1739368173569,0.76992,2597.8,2597.7,0.00578001]
[1739368173880,0.76988,2598.0,2597.7,3.21358001]
[1739368174273,0.00578001,2598.3,2597.7,0.00578001]
[1739368174469,0.76992,2597.8,2597.7,0.00578001]
[1739368174686,3.2078,2598.1,2596.7,3.2078]
[1739368175077,3.2078,2598.1,2596.8,5.08316901]
[1739368175381,3.2078,2598.1,2597.3,3.2078]
[1739368175580,0.77004,2597.4,2597.3,3.2078]
[1739368175782,3.2078,2597.8,2597.3,3.2078]
[1739368175974,0.77001,2597.5,2597.3,3.2078]
[1739368176482,3.2078,2598.2,2597.3,3.2078]
[1739368176776,0.00578001,2598.3,2597.7,3.2078]
[1739368176977,0.00578001,2598.3,2597.4,4.98342401]
[1739368176978,0.00578001,2598.3,2598.2,3.2078]
[1739368177180,0.00578001,2598.3,2597.6,5.4303052]
[1739368177181,0.00578001,2598.3,2597.9,3.2078]
[1739368177382,0.77556001,2598.3,2597.9,3.2078]
[1739368177586,0.00578001,2598.3,2597.9,3.2078]
[1739368177878,0.00578001,2598.3,2597.8,4.98342401]
[1739368177879,0.7699,2597.9,2597.6,3.2078]
[1739368178189,0.76986,2598.0,2597.6,3.2078]
[1739368178373,0.00578001,2598.3,2597.6,3.2078]
[1739368178674,0.00578001,2598.3,2597.6,8.6381052]
[1739368178883,3.2078,2598.9,2598.2,3.2078]
[1739368179074,3.2078,2598.9,2598.3,3.2078]
[1739368179274,3.2078,2598.9,2597.9,3.2078]
[1739368179476,0.76966,2598.7,2598.2,3.2078]
[1739368179776,0.76966,2598.7,2598.0,5.4303052]
[1739368179777,0.57202755,2599.7,2598.5,3.2078]
[1739368179981,0.76942,2599.5,2599.1,3.2078]
[1739368180283,0.76946,2599.4,2599.1,3.2078]
[1739368180477,0.76948,2599.3,2599.1,3.2078]
[1739368180678,0.00578001,2599.6,2599.0,0.00578001]
[1739368181278,0.76952,2599.2,2599.0,0.00578001]
[1739368181478,0.00578001,2599.6,2599.0,0.00578001]
[1739368181682,0.00578001,2599.6,2599.2,3.2078]
[1739368182196,0.00578001,2599.6,2599.0,0.00578001]
[1739368182387,0.76946,2599.4,2599.3,3.2078]
[1739368182785,0.00578001,2599.6,2599.3,3.2078]
[1739368183388,29.2343052,2601.1,2599.3,3.2078]
[1739368183389,3.2078,2601.4,2599.7,3.2078]
[1739368183590,3.2078,2602.3,2601.2,3.2078]
[1739368183790,0.76873,2601.9,2601.2,3.2078]
[1739368183989,3.2078,2602.3,2601.2,3.2078]
[1739368184192,4.7515,2602.8,2600.7,3.642]
[1739368184193,3.2078,2602.0,2600.7,5.4303052]
[1739368184388,3.2078,2602.0,2601.1,3.2078]
[1739368184693,0.00576879,2601.6,2601.2,4.98899507]
[1739368185189,0.00576879,2601.6,2601.1,8.64387399]
[1739368185392,0.76885,2601.5,2601.1,8.64387399]
[1739368185593,0.00576879,2601.6,2601.1,8.64387399]
[1739368185783,0.16876879,2601.6,2601.1,0.00576879]
[1739368185986,0.76891,2601.2,2601.1,0.00576879]
[1739368186386,0.16876879,2601.6,2601.1,0.00576879]
[1739368186587,0.00576879,2601.6,2601.1,0.00576879]
[1739368186783,0.00576879,2601.6,2601.1,5.43607399]
[1739368186997,0.00576879,2601.6,2601.1,8.64387399]
[1739368187197,0.00576879,2601.6,2601.4,3.2078]
[1739368188098,0.00576879,2601.6,2601.1,5.43607399]
[1739368188099,0.76891,2601.2,2601.1,0.00576879]
[1739368188491,3.21356879,2601.6,2601.1,5.43607399]
[1739368188492,0.00576879,2601.6,2601.1,5.43607399]
[1739368188993,0.00576879,2601.6,2601.5,5.4303052]
[1739368189194,0.163,2602.6,2601.5,6.1991252]
[1739368189195,0.76855,2602.5,2601.5,6.1991252]
[1739368189391,0.76858,2602.4,2601.9,5.4303052]
[1739368190087,4.7515,2602.8,2601.9,5.4303052]
[1739368190288,3.2078,2602.6,2601.7,3.2078]
[1739368190488,3.21356879,2602.6,2601.7,3.2078]
[1739368190690,0.76864,2602.2,2601.7,3.2078]
[1739368190888,3.21356879,2602.6,2601.9,5.4303052]
[1739368191086,0.76858,2602.4,2602.1,3.2078]
[1739368191285,3.2078,2602.4,2601.5,5.4303052]
[1739368191484,0.00576879,2602.6,2601.5,5.4303052]
[1739368191697,0.00576879,2602.6,2601.9,5.4303052]
[1739368191698,0.76866,2602.1,2601.9,5.4303052]
[1739368192295,0.00576879,2602.6,2601.9,5.4303052]
[1739368192491,0.76867,2602.1,2601.9,5.4303052]
[1739368192690,0.00576879,2602.6,2601.9,5.4303052]
[1739368193092,3.2078,2602.4,2601.6,3.2078]
[1739368193295,0.76891,2601.2,2601.1,0.00576879]
[1739368193894,6.0,2601.2,2600.2,8.6381052]
[1739368194200,0.76918,2600.3,2600.2,8.6381052]
[1739368194493,0.76917,2600.4,2600.2,8.6381052]
[1739368194698,3.2078,2601.3,2600.2,8.6381052]
[1739368195087,0.76909,2600.6,2600.5,0.00576879]
[1739368196395,0.76909,2600.6,2600.5,8.79e-06]
[1739368197211,6.76909,2600.6,2600.5,8.79e-06]
[1739368198298,0.7695,2599.2,2599.1,3.2078]
[1739368199699,0.00576879,2599.4,2599.0,5.4303052]
[1739368199899,0.76956,2599.0,2598.9,0.00576879]
[1739368201198,0.76954,2599.1,2598.9,0.00576879]
[1739368201398,0.76954,2599.1,2599.0,5.4303052]
[1739368201801,0.00576879,2599.4,2599.0,5.4303052]
[1739368202006,0.00576879,2599.4,2598.9,0.00576879]
[1739368202194,0.00576879,2599.4,2599.2,3.2078]
[1739368202401,0.76935,2599.8,2599.2,3.2078]
[1739368202594,7.40773,2600.5,2599.6,8.6381052]
[1739368202798,1.92263,2600.8,2600.0,5.4303052]
[1739368202999,0.76922,2600.2,2600.0,5.4303052]
[1739368203207,0.76922,2600.2,2599.1,3.83045088]
[1739368203208,0.76936,2599.7,2599.6,5.4303052]
[1739368203402,0.76947,2599.3,2599.2,14.5147052]
[1739368203603,0.76947,2599.3,2599.2,8.6381052]
[1739368203804,0.00576879,2599.9,2599.4,0.76944]
[1739368204004,0.00576879,2599.9,2599.2,19.73782041]
[1739368204005,0.00576879,2599.9,2599.8,3.2078]
[1739368204209,3.2078,2601.0,2599.8,9.2078]
[1739368204404,3.2078,2601.0,2600.1,3.2078]
[1739368204608,3.2078,2600.6,2599.8,3.2078]
[1739368204804,0.7693,2599.9,2599.6,5.4303052]
[1739368205104,5.13025,2601.0,2599.8,3.2078]
[1739368205306,3.2078,2601.0,2600.0,5.4303052]
[1739368205503,3.2078,2601.0,2600.1,3.2078]
[1739368205708,0.76921,2600.2,2600.1,3.2078]
[1739368206099,0.00576879,2600.8,2600.1,3.2078]
[1739368206298,0.00576879,2600.8,2600.4,5.4303052]
[1739368206510,0.77481879,2600.8,2600.4,8.6381052]
[1739368206810,0.00576879,2600.8,2600.4,8.6381052]
[1739368207110,0.77482879,2600.8,2600.4,8.6381052]
[1739368207306,0.00576879,2600.8,2600.4,8.6381052]
[1739368207503,0.00576879,2600.8,2600.5,5.10585515]
[1739368207905,0.77479879,2600.8,2600.7,3.2078]
[1739368208217,0.00576879,2600.8,2600.7,3.2078]
[1739368208507,20.145,2601.8,2600.7,14.19155879]
[1739368208711,20.145,2601.8,2601.0,5.4303052]
[1739368209105,20.145,2601.8,2600.9,3.2078]
[1739368209106,0.76897,2601.0,2600.9,3.2078]
[1739368209326,1.92206,2601.5,2600.6,5.4303052]
[1739368209327,3.2078,2601.3,2600.6,5.4303052]
[1739368209509,3.8426,2602.6,2600.6,5.4303052]
[1739368209510,3.2078,2603.4,2601.2,8.6381052]
[1739368209709,3.2078,2603.4,2602.2,5.4303052]
[1739368209710,1.92084,2603.2,2602.2,5.4303052]
[1739368210011,0.00576879,2602.6,2602.2,5.4303052]
[1739368210216,0.00576879,2602.6,2602.4,0.00576879]
[1739368210411,0.00576879,2602.6,2602.4,3.21356879]
[1739368211615,0.76853,2602.5,2602.4,3.21356879]
[1739368212110,0.77427879,2602.6,2602.4,3.21356879]
[1739368212305,0.00576879,2602.6,2602.4,3.21356879]
[1739368212517,0.76853,2602.5,2602.4,3.21356879]
[1739368212810,0.00576879,2602.6,2602.4,3.21356879]
[1739368213313,4.4547,2603.7,2602.5,5.07887261]
[1739368213511,0.76835,2603.1,2603.0,3.2078]
[1739368213716,4.4547,2603.7,2602.7,3.2078]
[1739368213911,0.76844,2602.8,2602.7,3.2078]
[1739368214510,6.0,2602.8,2602.4,3.21356879]
[1739368214717,0.76853,2602.5,2602.4,3.21356879]
[1739368215208,0.76853,2602.5,2602.4,0.00576879]
[1739368215415,0.76853,2602.5,2602.4,8.79e-06]
[1739368216908,0.76897,2601.0,2600.8,5.4303052]
[1739368217209,1.92142,2602.4,2599.2,3.84748]
[1739368217210,0.76905,2600.8,2600.6,3.2078]
[1739368217412,1.92206,2601.5,2600.6,3.2078]
[1739368217714,3.2078,2601.8,2600.9,3.2078]
[1739368217914,1.92151,2602.3,2601.2,8.6381052]
[1739368218112,0.00576879,2601.6,2601.2,8.6381052]
[1739368218420,0.76891,2601.2,2601.1,0.00576879]
[1739368218917,0.76891,2601.2,2601.1,8.79e-06]
[1739368218918,9.97671,2601.2,2601.1,8.79e-06]
[1739368219119,6.76891,2601.2,2601.1,8.79e-06]
[1739368219322,9.97671,2601.2,2601.1,8.79e-06]
[1739368220920,14.6381052,2601.2,2599.4,3.51969162]
[1739368221108,14.6381052,2601.2,2599.1,11.2240052]
[1739368221109,0.76946,2599.4,2599.1,5.7937]
[1739368221315,0.76953,2599.1,2599.0,3.2078]
[1739368221618,0.76948,2599.3,2599.0,3.2078]
[1739368221918,0.7695,2599.3,2599.0,3.2078]
[1739368222114,0.76946,2599.4,2599.0,3.2078]
[1739368222313,0.00576879,2599.4,2599.0,3.2078]
[1739368222514,0.76953,2599.1,2599.0,3.2078]
[1739368222917,0.00576879,2599.4,2599.0,3.2078]
[1739368223314,0.00576879,2599.4,2599.3,3.2078]
[1739368223715,5.13061,2600.5,2599.3,9.2078]
[1739368224017,0.7693,2600.0,2599.8,3.2078]
[1739368224319,0.7693,2599.9,2599.8,3.2078]
[1739368224519,3.2078,2600.3,2599.8,3.2078]
[1739368224823,3.2078,2600.3,2599.3,3.2078]
[1739368225014,0.76944,2599.4,2599.3,3.2078]
[1739368225917,0.76956,2599.0,2598.9,3.21356879]
[1739368226116,0.76956,2599.0,2598.9,0.00576879]
[1739368227319,0.76956,2599.0,2598.9,8.79e-06]
[1739368228120,9.97736,2599.0,2598.9,8.79e-06]
[1739368228827,3.97736,2599.0,2598.9,8.79e-06]
[1739368229024,9.97736,2599.0,2598.9,8.79e-06]
[1739368229822,9.2078,2599.0,2597.4,0.00775401]
[1739368230126,0.77001,2597.5,2597.4,0.00775401]
[1739368230329,3.2078,2598.4,2597.4,0.00775401]
[1739368230524,0.76999,2597.6,2597.4,0.00775401]
[1739368230717,3.2078,2598.4,2597.4,0.00775401]
[1739368230924,0.77001,2597.5,2597.4,0.00775401]
[1739368231431,0.77001,2597.5,2597.4,4.01e-06]
[1739368232236,0.77007,2597.3,2597.2,2.8e-06]
[1739368232623,6.77007,2597.3,2597.2,2.8e-06]
[1739368232826,0.77007,2597.3,2597.2,2.8e-06]
[1739368236429,0.77006,2597.4,2597.2,2.8e-06]
[1739368236732,1.92465,2598.0,2597.3,3.2078]
[1739368236926,0.77004,2597.4,2597.3,3.2078]